[Event "FIDE World Rapid Chess Championship 2021"]
[White "Rapport, Richard"]
[Black "Shevchenko, Kirill"]
[WhiteFideId "738590"]
[BlackFideId "14129574"]
[WhiteElo "2750"]
[BlackElo "2508"]
[Result "1-0"]
[Round "13"]
[TimeControl "900+10"]
[Date "2021.12.28"]
[WhiteClock "0:00:35"]
[BlackClock "0:00:22"]

1. e4 {[%clk 0:15:00]}  c5 {[%clk 0:15:00]} 2. Nf3 {[%clk 0:15:00]}  d6 {[%clk 0:15:07]} 3. Bd3 {[%clk 0:15:36]}  Nf6 {[%clk 0:15:07]} 4. O-O {[%clk 0:15:36]}  Nc6 {[%clk 0:15:07]} 5. Re1 {[%clk 0:15:36]}  a6 {[%clk 0:15:07]} 6. Bf1 {[%clk 0:15:36]}  g6 {[%clk 0:15:07]} 7. c3 {[%clk 0:15:36]}  Bg4 {[%clk 0:13:27]} 8. d3 {[%clk 0:15:09]}  Bg7 {[%clk 0:13:27]} 9. Be3 {[%clk 0:15:09]}  O-O {[%clk 0:13:27]} 10. Nbd2 {[%clk 0:15:09]}  Rc8 {[%clk 0:13:01]} 11. h3 {[%clk 0:15:20]}  Bd7 {[%clk 0:13:01]} 12. a3 {[%clk 0:15:20]}  e5 {[%clk 0:10:39]} 13. b4 {[%clk 0:15:13]}  b6 {[%clk 0:10:39]} 14. Rb1 {[%clk 0:15:18]}  Qc7 {[%clk 0:07:31]} 15. Qb3 {[%clk 0:15:18]}  b5 {[%clk 0:06:25]} 16. Qb2 {[%clk 0:12:41]}  cxb4 {[%clk 0:06:25]} 17. axb4 {[%clk 0:12:41]}  a5 {[%clk 0:06:25]} 18. bxa5 {[%clk 0:12:41]}  Nxa5 {[%clk 0:06:25]} 19. d4 {[%clk 0:12:41]}  exd4 {[%clk 0:05:54]} 20. Bxd4 {[%clk 0:12:17]}  Nc6 {[%clk 0:05:54]} 21. Bxf6 {[%clk 0:11:50]}  Bxf6 {[%clk 0:03:13]} 22. Bxb5 {[%clk 0:11:50]}  Rb8 {[%clk 0:03:13]} 23. Qc2 {[%clk 0:11:50]}  Nb4 {[%clk 0:03:13]} 24. Rxb4 {[%clk 0:11:50]}  Rxb5 {[%clk 0:02:24]} 25. Rxb5 {[%clk 0:10:48]}  Bxb5 {[%clk 0:02:24]} 26. c4 {[%clk 0:10:48]}  Rc8 {[%clk 0:02:24]} 27. Qd3 {[%clk 0:10:48]}  Bxc4 {[%clk 0:02:24]} 28. Nxc4 {[%clk 0:10:48]}  Qxc4 {[%clk 0:02:24]} 29. Qxd6 {[%clk 0:10:48]}  Bc3 {[%clk 0:02:24]} 30. Re3 {[%clk 0:10:48]}  Bb4 {[%clk 0:01:39]} 31. Qd7 {[%clk 0:10:29]}  Qc7 {[%clk 0:01:39]} 32. Qxc7 {[%clk 0:10:29]}  Rxc7 {[%clk 0:01:39]} 33. Re2 {[%clk 0:10:29]}  Rc3 {[%clk 0:01:39]} 34. h4 {[%clk 0:10:29]}  Kg7 {[%clk 0:01:39]} 35. Rb2 {[%clk 0:09:33]}  Bc5 {[%clk 0:01:07]} 36. e5 {[%clk 0:09:33]}  Rc4 {[%clk 0:01:07]} 37. g3 {[%clk 0:09:33]}  Re4 {[%clk 0:00:50]} 38. Kg2 {[%clk 0:08:01]}  h6 {[%clk 0:00:50]} 39. Kf1 {[%clk 0:08:01]}  Kf8 {[%clk 0:00:50]} 40. Rc2 {[%clk 0:08:01]}  Bb6 {[%clk 0:00:50]} 41. Rc6 {[%clk 0:08:01]}  Rb4 {[%clk 0:00:50]} 42. Rc2 {[%clk 0:07:05]}  Ke7 {[%clk 0:00:21]} 43. Kg2 {[%clk 0:07:05]}  Rb5 {[%clk 0:00:21]} 44. g4 {[%clk 0:07:05]}  Rb4 {[%clk 0:00:21]} 45. Kg3 {[%clk 0:07:05]}  Rb3 {[%clk 0:00:21]} 46. h5 {[%clk 0:07:05]}  gxh5 {[%clk 0:00:21]} 47. gxh5 {[%clk 0:07:05]}  Kd7 {[%clk 0:00:21]} 48. Kg4 {[%clk 0:07:05]}  Bc7 {[%clk 0:00:21]} 49. Rd2+ {[%clk 0:06:05]}  Ke8 {[%clk 0:00:16]} 50. Nd4 {[%clk 0:06:05]}  Rb1 {[%clk 0:00:16]} 51. f4 {[%clk 0:06:05]}  Rg1+ {[%clk 0:00:16]} 52. Kf3 {[%clk 0:06:05]}  Rf1+ {[%clk 0:00:16]} 53. Ke4 {[%clk 0:06:05]}  Re1+ {[%clk 0:00:16]} 54. Re2 {[%clk 0:06:05]}  Rf1 {[%clk 0:00:16]} 55. Rc2 {[%clk 0:06:05]}  Kd8 {[%clk 0:00:16]} 56. Nf5 {[%clk 0:06:05]}  f6 {[%clk 0:00:16]} 57. Nxh6 {[%clk 0:05:40]}  fxe5 {[%clk 0:00:23]} 58. Nf7+ {[%clk 0:05:40]}  Kd7 {[%clk 0:00:23]} 59. Nxe5+ {[%clk 0:03:01]}  Bxe5 {[%clk 0:00:45]} 60. Kxe5 {[%clk 0:03:01]}  Ke7 {[%clk 0:00:45]} 61. Rc7+ {[%clk 0:03:01]}  Kf8 {[%clk 0:00:45]} 62. f5 {[%clk 0:03:01]}  Rh1 {[%clk 0:00:45]} 63. Ke6 {[%clk 0:03:01]}  Kg8 {[%clk 0:00:45]} 64. Kf6 {[%clk 0:01:23]}  Rh2 {[%clk 0:00:40]} 65. Rb7 {[%clk 0:01:23]}  Rh1 {[%clk 0:00:40]} 66. Rg7+ {[%clk 0:01:23]}  Kh8 {[%clk 0:00:40]} 67. Ra7 {[%clk 0:01:23]}  Kg8 {[%clk 0:00:40]} 68. Kg6 {[%clk 0:01:23]}  Rg1+ {[%clk 0:00:40]} 69. Kh6 {[%clk 0:01:23]}  Rf1 {[%clk 0:00:40]} 70. Kg5 {[%clk 0:00:20]}  Rg1+ {[%clk 0:00:54]} 71. Kf6 {[%clk 0:00:20]}  Rh1 {[%clk 0:00:54]} 72. Ra8+ {[%clk 0:00:20]}  Kh7 {[%clk 0:00:54]} 73. Ke7 {[%clk 0:00:20]}  Re1+ {[%clk 0:00:54]} 74. Kf8 {[%clk 0:00:20]}  Rf1 {[%clk 0:00:54]} 75. Ra5 {[%clk 0:00:20]}  Kh6 {[%clk 0:00:54]} 76. Ra6+ {[%clk 0:00:20]}  Kg5 {[%clk 0:00:54]} 77. h6 {[%clk 0:00:20]}  Rxf5+ {[%clk 0:00:54]} 78. Kg7 {[%clk 0:00:20]}  Rb5 {[%clk 0:00:54]} 79. Ra7 {[%clk 0:00:20]}  Rb6 {[%clk 0:00:22]} 80. h7 {[%clk 0:00:35]}  Rg6+ {[%clk 0:00:22]} 81. Kf8 {[%clk 0:00:35]}  Rh6 {[%clk 0:00:22]} 82. Kg8 {[%clk 0:00:35]} 1-0


[Site "http://www.Chess.com"]

[Event "FIDE World Rapid Chess Championship 2021"]
[White "Dubov, Daniil"]
[Black "Mitrabha, Guha"]
[WhiteFideId "24126055"]
[BlackFideId "5057000"]
[WhiteElo "2735"]
[BlackElo "2107"]
[Result "1/2-1/2"]
[Round "13"]
[TimeControl "900+10"]
[Date "2021.12.28"]
[WhiteClock "0:00:13"]
[BlackClock "0:00:22"]

1. d4 {[%clk 0:15:00]}  Nf6 {[%clk 0:15:00]} 2. Nf3 {[%clk 0:15:00]}  e6 {[%clk 0:15:00]} 3. c4 {[%clk 0:15:00]}  c5 {[%clk 0:15:00]} 4. d5 {[%clk 0:15:56]}  exd5 {[%clk 0:15:54]} 5. cxd5 {[%clk 0:15:56]}  d6 {[%clk 0:15:54]} 6. Nc3 {[%clk 0:15:56]}  g6 {[%clk 0:15:54]} 7. Nd2 {[%clk 0:15:56]}  b6 {[%clk 0:15:54]} 8. e4 {[%clk 0:15:56]}  Bg7 {[%clk 0:15:54]} 9. Bb5+ {[%clk 0:15:56]}  Bd7 {[%clk 0:15:54]} 10. Be2 {[%clk 0:15:56]}  O-O {[%clk 0:15:54]} 11. O-O {[%clk 0:15:56]}  Qe7 {[%clk 0:15:54]} 12. Re1 {[%clk 0:15:56]}  Bc8 {[%clk 0:15:54]} 13. a4 {[%clk 0:15:49]}  Nfd7 {[%clk 0:14:43]} 14. f4 {[%clk 0:14:51]}  Na6 {[%clk 0:14:43]} 15. Nc4 {[%clk 0:14:17]}  Nb4 {[%clk 0:11:30]} 16. Bf3 {[%clk 0:14:17]}  Ba6 {[%clk 0:11:30]} 17. Nb5 {[%clk 0:14:17]}  Bxb5 {[%clk 0:11:30]} 18. axb5 {[%clk 0:14:17]}  a6 {[%clk 0:11:30]} 19. e5 {[%clk 0:12:30]}  dxe5 {[%clk 0:11:13]} 20. d6 {[%clk 0:12:30]}  Qe6 {[%clk 0:11:13]} 21. Nxe5 {[%clk 0:12:30]}  Nxe5 {[%clk 0:10:43]} 22. fxe5 {[%clk 0:10:31]}  Ra7 {[%clk 0:10:43]} 23. bxa6 {[%clk 0:09:59]}  Bxe5 {[%clk 0:09:46]} 24. Bh6 {[%clk 0:09:59]}  Rd8 {[%clk 0:09:46]} 25. Bb7 {[%clk 0:09:59]}  Rxd6 {[%clk 0:08:49]} 26. Qf3 {[%clk 0:08:08]}  Nc2 {[%clk 0:08:26]} 27. Rxe5 {[%clk 0:06:14]}  Qxe5 {[%clk 0:08:26]} 28. Rf1 {[%clk 0:06:14]}  Qe6 {[%clk 0:08:26]} 29. Qf2 {[%clk 0:06:14]}  g5 {[%clk 0:07:04]} 30. Bxg5 {[%clk 0:05:03]}  Qg6 {[%clk 0:04:29]} 31. Bf4 {[%clk 0:04:47]}  Rd7 {[%clk 0:04:29]} 32. Bb8 {[%clk 0:04:47]}  Raxb7 {[%clk 0:04:29]} 33. axb7 {[%clk 0:04:47]}  Rxb7 {[%clk 0:04:29]} 34. Be5 {[%clk 0:04:47]}  Re7 {[%clk 0:04:38]} 35. Bf6 {[%clk 0:03:25]}  Re6 {[%clk 0:04:38]} 36. Qf4 {[%clk 0:03:25]}  Qe4 {[%clk 0:03:41]} 37. Rd1 {[%clk 0:03:03]}  Nd4 {[%clk 0:01:01]} 38. Qg3+ {[%clk 0:03:03]}  Kf8 {[%clk 0:01:01]} 39. Qg7+ {[%clk 0:03:03]}  Ke8 {[%clk 0:01:01]} 40. Bxd4 {[%clk 0:03:03]}  cxd4 {[%clk 0:01:01]} 41. Qxd4 {[%clk 0:03:03]}  Qxd4+ {[%clk 0:00:44]} 42. Rxd4 {[%clk 0:00:20]}  Rf6 {[%clk 0:00:44]} 43. g4 {[%clk 0:00:20]}  h6 {[%clk 0:00:44]} 44. Kg2 {[%clk 0:00:20]}  Kf8 {[%clk 0:00:44]} 45. Kg3 {[%clk 0:00:20]}  Kg7 {[%clk 0:00:44]} 46. h3 {[%clk 0:00:20]}  Kg6 {[%clk 0:00:44]} 47. Rd5 {[%clk 0:00:20]}  Kg7 {[%clk 0:00:44]} 48. b4 {[%clk 0:00:20]}  Rc6 {[%clk 0:00:44]} 49. Rb5 {[%clk 0:00:20]}  Rf6 {[%clk 0:00:44]} 50. Kh4 {[%clk 0:00:20]}  Re6 {[%clk 0:00:44]} 51. Kh5 {[%clk 0:00:20]}  Re3 {[%clk 0:00:44]} 52. Kh4 {[%clk 0:00:20]}  Re6 {[%clk 0:00:44]} 53. Rd5 {[%clk 0:00:20]}  Re4 {[%clk 0:01:11]} 54. b5 {[%clk 0:00:38]}  Rb4 {[%clk 0:01:11]} 55. Kh5 {[%clk 0:00:38]}  Rb1 {[%clk 0:01:11]} 56. h4 {[%clk 0:00:38]}  Rb4 {[%clk 0:01:11]} 57. Rf5 {[%clk 0:00:38]}  Rd4 {[%clk 0:01:11]} 58. g5 {[%clk 0:00:38]}  hxg5 {[%clk 0:01:11]} 59. Kxg5 {[%clk 0:00:38]}  Rd1 {[%clk 0:01:11]} 60. Kf4 {[%clk 0:00:38]}  Rd4+ {[%clk 0:01:11]} 61. Kg5 {[%clk 0:00:38]}  Rd1 {[%clk 0:01:11]} 62. h5 {[%clk 0:00:38]}  Rg1+ {[%clk 0:01:18]} 63. Kf4 {[%clk 0:00:17]}  Rd1 {[%clk 0:01:18]} 64. Ke5 {[%clk 0:00:17]}  Rd2 {[%clk 0:01:18]} 65. h6+ {[%clk 0:00:17]}  Kf8 {[%clk 0:01:18]} 66. Rf6 {[%clk 0:00:17]}  Ke7 {[%clk 0:01:18]} 67. Rxb6 {[%clk 0:00:17]}  Rh2 {[%clk 0:01:18]} 68. Rb7+ {[%clk 0:00:13]}  Kd8 {[%clk 0:00:22]} 69. Rb6 {[%clk 0:00:13]}  Ke7 {[%clk 0:00:22]} 70. Rb7+ {[%clk 0:00:13]}  Kd8 {[%clk 0:00:22]} 71. Rb6 {[%clk 0:00:13]} 1/2-1/2


[Site "http://www.Chess.com"]

[Event "FIDE World Rapid Chess Championship 2021"]
[White "Aronian, Levon"]
[Black "Matlakov, Maxim"]
[WhiteFideId "13300474"]
[BlackFideId "4168003"]
[WhiteElo "2728"]
[BlackElo "2652"]
[Result "1-0"]
[Round "13"]
[TimeControl "900+10"]
[Date "2021.12.28"]
[WhiteClock "0:00:58"]
[BlackClock "0:00:36"]

1. e4 {[%clk 0:15:00]}  e5 {[%clk 0:15:00]} 2. Nf3 {[%clk 0:15:00]}  Nc6 {[%clk 0:15:00]} 3. Bc4 {[%clk 0:15:00]}  Nf6 {[%clk 0:15:00]} 4. d3 {[%clk 0:15:00]}  Bc5 {[%clk 0:15:00]} 5. Nc3 {[%clk 0:16:03]}  d6 {[%clk 0:15:40]} 6. Na4 {[%clk 0:16:03]}  Bb6 {[%clk 0:15:40]} 7. a3 {[%clk 0:16:03]}  h6 {[%clk 0:15:40]} 8. O-O {[%clk 0:16:03]}  O-O {[%clk 0:15:40]} 9. Re1 {[%clk 0:16:01]}  Re8 {[%clk 0:15:40]} 10. b4 {[%clk 0:16:01]}  Ne7 {[%clk 0:14:22]} 11. h3 {[%clk 0:15:44]}  Ng6 {[%clk 0:14:22]} 12. Bb3 {[%clk 0:15:44]}  c6 {[%clk 0:12:49]} 13. Nxb6 {[%clk 0:14:59]}  axb6 {[%clk 0:12:49]} 14. d4 {[%clk 0:14:59]}  exd4 {[%clk 0:12:49]} 15. Qxd4 {[%clk 0:14:59]}  Be6 {[%clk 0:12:49]} 16. Bb2 {[%clk 0:14:43]}  Qc7 {[%clk 0:10:48]} 17. Qc3 {[%clk 0:13:36]}  Rad8 {[%clk 0:07:51]} 18. Nd4 {[%clk 0:12:04]}  Bxb3 {[%clk 0:06:21]} 19. cxb3 {[%clk 0:12:04]}  Rxe4 {[%clk 0:06:21]} 20. Nf5 {[%clk 0:12:04]}  Re5 {[%clk 0:06:21]} 21. Qf3 {[%clk 0:10:10]}  Rxe1+ {[%clk 0:05:38]} 22. Rxe1 {[%clk 0:10:10]}  Re8 {[%clk 0:05:38]} 23. Rd1 {[%clk 0:10:10]}  Re6 {[%clk 0:05:38]} 24. Nxh6+ {[%clk 0:10:10]}  gxh6 {[%clk 0:05:38]} 25. Bxf6 {[%clk 0:10:10]}  d5 {[%clk 0:05:38]} 26. Bd4 {[%clk 0:08:55]}  b5 {[%clk 0:05:34]} 27. g3 {[%clk 0:07:09]}  Qe7 {[%clk 0:05:34]} 28. h4 {[%clk 0:07:09]}  Re4 {[%clk 0:05:34]} 29. Qh5 {[%clk 0:06:58]}  Kh7 {[%clk 0:02:46]} 30. Be3 {[%clk 0:06:58]}  Qf8 {[%clk 0:02:46]} 31. Qf5 {[%clk 0:06:58]}  Re5 {[%clk 0:02:46]} 32. Qf3 {[%clk 0:06:58]}  Qe7 {[%clk 0:02:31]} 33. h5 {[%clk 0:04:31]}  Nf8 {[%clk 0:02:31]} 34. Bc5 {[%clk 0:04:31]}  Qe8 {[%clk 0:02:31]} 35. Bd4 {[%clk 0:04:31]}  Re1+ {[%clk 0:02:31]} 36. Rxe1 {[%clk 0:04:31]}  Qxe1+ {[%clk 0:02:31]} 37. Kh2 {[%clk 0:04:31]}  Qe6 {[%clk 0:02:31]} 38. Qf4 {[%clk 0:04:31]}  Nd7 {[%clk 0:02:47]} 39. a4 {[%clk 0:03:19]}  bxa4 {[%clk 0:02:47]} 40. bxa4 {[%clk 0:03:19]}  Kg8 {[%clk 0:02:47]} 41. Qc7 {[%clk 0:03:19]}  Nf6 {[%clk 0:02:47]} 42. Qd8+ {[%clk 0:03:19]}  Ne8 {[%clk 0:01:39]} 43. Qb8 {[%clk 0:02:40]}  Qd7 {[%clk 0:01:39]} 44. a5 {[%clk 0:02:40]}  Kh7 {[%clk 0:01:39]} 45. Qa7 {[%clk 0:02:40]}  Qg4 {[%clk 0:01:39]} 46. Qxb7 {[%clk 0:01:23]}  Nd6 {[%clk 0:00:56]} 47. Qa7 {[%clk 0:01:23]}  Qxh5+ {[%clk 0:00:56]} 48. Kg2 {[%clk 0:01:23]}  Nb5 {[%clk 0:00:56]} 49. Qc5 {[%clk 0:01:23]}  Qf5 {[%clk 0:00:56]} 50. Be3 {[%clk 0:01:23]}  Qe4+ {[%clk 0:00:56]} 51. f3 {[%clk 0:01:23]}  Qd3 {[%clk 0:00:56]} 52. Bf2 {[%clk 0:01:23]}  Na3 {[%clk 0:00:36]} 53. Qe3 {[%clk 0:00:58]} 1-0


[Site "http://www.Chess.com"]

[Event "FIDE World Rapid Chess Championship 2021"]
[White "Onyshchuk, Volodymyr"]
[Black "Mamedyarov, Shakhriyar"]
[WhiteFideId "14114038"]
[BlackFideId "13401319"]
[WhiteElo "2687"]
[BlackElo "2727"]
[Result "0-1"]
[Round "13"]
[TimeControl "900+10"]
[Date "2021.12.28"]
[WhiteClock "0:03:01"]
[BlackClock "0:04:06"]

1. e4 {[%clk 0:15:00]}  e5 {[%clk 0:15:00]} 2. Nf3 {[%clk 0:15:00]}  Nc6 {[%clk 0:15:00]} 3. Bb5 {[%clk 0:15:00]}  a6 {[%clk 0:15:00]} 4. Ba4 {[%clk 0:15:00]}  Nf6 {[%clk 0:15:00]} 5. O-O {[%clk 0:15:55]}  Nxe4 {[%clk 0:15:51]} 6. d4 {[%clk 0:15:55]}  b5 {[%clk 0:15:51]} 7. Bb3 {[%clk 0:15:55]}  d5 {[%clk 0:15:51]} 8. dxe5 {[%clk 0:15:55]}  Be6 {[%clk 0:15:51]} 9. Be3 {[%clk 0:15:55]}  Be7 {[%clk 0:15:51]} 10. c3 {[%clk 0:15:55]}  Qd7 {[%clk 0:15:51]} 11. Nbd2 {[%clk 0:15:55]}  Nxd2 {[%clk 0:15:51]} 12. Qxd2 {[%clk 0:14:17]}  Na5 {[%clk 0:15:38]} 13. Rfd1 {[%clk 0:14:17]}  Rd8 {[%clk 0:15:38]} 14. Nd4 {[%clk 0:14:17]}  O-O {[%clk 0:14:40]} 15. Qd3 {[%clk 0:13:05]}  Nc4 {[%clk 0:14:38]} 16. Bxc4 {[%clk 0:13:05]}  bxc4 {[%clk 0:13:50]} 17. Qd2 {[%clk 0:11:24]}  c5 {[%clk 0:13:50]} 18. Ne2 {[%clk 0:11:24]}  Qc7 {[%clk 0:11:13]} 19. Bf4 {[%clk 0:11:42]}  Rd7 {[%clk 0:11:13]} 20. Qe3 {[%clk 0:10:09]}  Rfd8 {[%clk 0:10:12]} 21. Rd2 {[%clk 0:10:09]}  Qb6 {[%clk 0:08:18]} 22. Rad1 {[%clk 0:09:32]}  d4 {[%clk 0:05:35]} 23. Qg3 {[%clk 0:09:32]}  dxc3 {[%clk 0:05:35]} 24. Qxc3 {[%clk 0:09:32]}  Rd3 {[%clk 0:05:35]} 25. Qc1 {[%clk 0:06:30]}  h6 {[%clk 0:06:34]} 26. Be3 {[%clk 0:06:30]}  Bg4 {[%clk 0:06:10]} 27. Nf4 {[%clk 0:04:24]}  Bxd1 {[%clk 0:06:10]} 28. Nxd3 {[%clk 0:04:24]}  Rxd3 {[%clk 0:06:10]} 29. Qxd1 {[%clk 0:04:24]}  Qxb2 {[%clk 0:06:10]} 30. Rxd3 {[%clk 0:02:52]}  cxd3 {[%clk 0:05:48]} 31. Qxd3 {[%clk 0:02:52]}  Qa1+ {[%clk 0:05:48]} 32. Qf1 {[%clk 0:02:52]}  Qxa2 {[%clk 0:05:48]} 33. h3 {[%clk 0:02:52]}  c4 {[%clk 0:05:48]} 34. Qd1 {[%clk 0:02:52]}  c3 {[%clk 0:04:06]} 35. Qd7 {[%clk 0:03:01]}  Bf8 {[%clk 0:04:06]} 36. Qc8 {[%clk 0:03:01]}  c2 {[%clk 0:04:06]} 37. Kh2 {[%clk 0:03:01]}  a5 {[%clk 0:04:06]} 38. f4 {[%clk 0:03:01]}  Qa3 {[%clk 0:04:06]} 39. Bd2 {[%clk 0:03:01]}  Qc5 {[%clk 0:04:06]} 0-1


[Site "http://www.Chess.com"]

[Event "FIDE World Rapid Chess Championship 2021"]
[White "Efimenko, Zahar"]
[Black "Giri, Anish"]
[WhiteFideId "14107201"]
[BlackFideId "24116068"]
[WhiteElo "2609"]
[BlackElo "2767"]
[Result "1/2-1/2"]
[Round "13"]
[TimeControl "900+10"]
[Date "2021.12.28"]
[WhiteClock "0:14:36"]
[BlackClock "0:14:36"]

1. Nf3 {[%clk 0:15:00]}  c5 {[%clk 0:15:00]} 2. c4 {[%clk 0:15:25]}  Nf6 {[%clk 0:15:27]} 3. d4 {[%clk 0:15:25]}  cxd4 {[%clk 0:15:27]} 4. Nxd4 {[%clk 0:15:25]}  e5 {[%clk 0:15:27]} 5. Nb5 {[%clk 0:15:25]}  d5 {[%clk 0:15:27]} 6. cxd5 {[%clk 0:15:25]}  Bc5 {[%clk 0:15:27]} 7. N5c3 {[%clk 0:15:25]}  O-O {[%clk 0:15:27]} 8. g3 {[%clk 0:14:36]}  Ng4 {[%clk 0:14:36]} 9. e3 {[%clk 0:14:36]}  f5 {[%clk 0:14:36]} 10. Be2 {[%clk 0:14:36]}  Nd7 {[%clk 0:14:36]} 1/2-1/2


[Site "http://www.Chess.com"]

[Event "FIDE World Rapid Chess Championship 2021"]
[White "Salem, A.R. Saleh"]
[Black "Anton Guijarro, David"]
[WhiteFideId "9301348"]
[BlackFideId "2285525"]
[WhiteElo "2729"]
[BlackElo "2627"]
[Result "0-1"]
[Round "13"]
[TimeControl "900+10"]
[Date "2021.12.28"]
[WhiteClock "0:00:47"]
[BlackClock "0:00:19"]

1. d4 {[%clk 0:15:00]}  d5 {[%clk 0:15:00]} 2. c4 {[%clk 0:15:00]}  e6 {[%clk 0:15:00]} 3. Nc3 {[%clk 0:15:00]}  Bb4 {[%clk 0:15:00]} 4. a3 {[%clk 0:15:00]}  Bxc3+ {[%clk 0:15:36]} 5. bxc3 {[%clk 0:15:52]}  Nf6 {[%clk 0:15:36]} 6. e3 {[%clk 0:15:52]}  c6 {[%clk 0:15:36]} 7. Bd3 {[%clk 0:15:52]}  O-O {[%clk 0:15:36]} 8. Ne2 {[%clk 0:15:52]}  b6 {[%clk 0:15:36]} 9. cxd5 {[%clk 0:15:14]}  cxd5 {[%clk 0:15:23]} 10. c4 {[%clk 0:15:14]}  Ba6 {[%clk 0:15:23]} 11. cxd5 {[%clk 0:15:14]}  Bxd3 {[%clk 0:15:23]} 12. Qxd3 {[%clk 0:15:14]}  Qxd5 {[%clk 0:14:12]} 13. f3 {[%clk 0:13:32]}  Nc6 {[%clk 0:14:12]} 14. e4 {[%clk 0:13:32]}  Qa5+ {[%clk 0:14:12]} 15. Kf2 {[%clk 0:13:45]}  Rfd8 {[%clk 0:11:36]} 16. Be3 {[%clk 0:13:45]}  Nxd4 {[%clk 0:11:25]} 17. Bxd4 {[%clk 0:09:55]}  e5 {[%clk 0:07:41]} 18. Qc3 {[%clk 0:09:55]}  exd4 {[%clk 0:07:41]} 19. Qxa5 {[%clk 0:09:55]}  bxa5 {[%clk 0:07:41]} 20. Rhd1 {[%clk 0:09:55]}  d3 {[%clk 0:08:01]} 21. Nf4 {[%clk 0:06:49]}  Rac8 {[%clk 0:08:01]} 22. Rxd3 {[%clk 0:06:49]}  Rxd3 {[%clk 0:08:01]} 23. Nxd3 {[%clk 0:06:49]}  Rc2+ {[%clk 0:08:01]} 24. Kf1 {[%clk 0:06:49]}  g5 {[%clk 0:08:01]} 25. Rc1 {[%clk 0:06:57]}  Rd2 {[%clk 0:06:28]} 26. Ne5 {[%clk 0:06:52]}  Nh5 {[%clk 0:06:28]} 27. Ng4 {[%clk 0:06:05]}  Nf4 {[%clk 0:05:16]} 28. g3 {[%clk 0:06:05]}  Ne6 {[%clk 0:04:49]} 29. h4 {[%clk 0:03:54]}  gxh4 {[%clk 0:03:31]} 30. gxh4 {[%clk 0:03:54]}  Rd3 {[%clk 0:03:31]} 31. Kf2 {[%clk 0:03:54]}  Rxa3 {[%clk 0:01:44]} 32. h5 {[%clk 0:01:38]}  Ng5 {[%clk 0:01:44]} 33. Rc5 {[%clk 0:01:38]}  Nxf3 {[%clk 0:00:59]} 34. h6 {[%clk 0:00:24]}  Kf8 {[%clk 0:00:59]} 35. Nf6 {[%clk 0:00:24]}  Ke7 {[%clk 0:00:59]} 36. Nxh7 {[%clk 0:00:24]}  Nh4 {[%clk 0:00:59]} 37. Rc7+ {[%clk 0:00:24]}  Ke6 {[%clk 0:00:59]} 38. Nf8+ {[%clk 0:00:24]}  Kf6 {[%clk 0:00:59]} 39. e5+ {[%clk 0:00:24]}  Kg5 {[%clk 0:00:59]} 40. h7 {[%clk 0:00:24]}  Ra2+ {[%clk 0:00:59]} 41. Kf1 {[%clk 0:00:24]}  Ra1+ {[%clk 0:00:19]} 42. Ke2 {[%clk 0:00:47]}  Ra2+ {[%clk 0:00:19]} 43. Kd1 {[%clk 0:00:47]} 0-1


[Site "http://www.Chess.com"]

[Event "FIDE World Rapid Chess Championship 2021"]
[White "Cheparinov, Ivan"]
[Black "Korobov, Anton"]
[WhiteFideId "2905540"]
[BlackFideId "14105730"]
[WhiteElo "2621"]
[BlackElo "2689"]
[Result "1/2-1/2"]
[Round "13"]
[TimeControl "900+10"]
[Date "2021.12.28"]
[WhiteClock "0:01:30"]
[BlackClock "0:02:47"]

1. d4 {[%clk 0:15:00]}  d5 {[%clk 0:15:00]} 2. c4 {[%clk 0:15:00]}  c6 {[%clk 0:15:00]} 3. Nf3 {[%clk 0:15:00]}  Nf6 {[%clk 0:15:00]} 4. Nc3 {[%clk 0:15:00]}  e6 {[%clk 0:15:00]} 5. Bg5 {[%clk 0:15:00]}  h6 {[%clk 0:15:00]} 6. Bh4 {[%clk 0:15:00]}  dxc4 {[%clk 0:15:00]} 7. e4 {[%clk 0:16:43]}  g5 {[%clk 0:16:40]} 8. Bg3 {[%clk 0:16:43]}  b5 {[%clk 0:16:40]} 9. Be2 {[%clk 0:16:43]}  Bb7 {[%clk 0:16:40]} 10. O-O {[%clk 0:16:43]}  Nbd7 {[%clk 0:16:40]} 11. Ne5 {[%clk 0:16:43]}  h5 {[%clk 0:16:40]} 12. Nxd7 {[%clk 0:16:43]}  Qxd7 {[%clk 0:16:40]} 13. Qc2 {[%clk 0:16:43]}  Be7 {[%clk 0:16:40]} 14. Rad1 {[%clk 0:16:43]}  Rd8 {[%clk 0:16:40]} 15. Be5 {[%clk 0:16:43]}  Rh6 {[%clk 0:16:40]} 16. h3 {[%clk 0:15:51]}  g4 {[%clk 0:15:50]} 17. h4 {[%clk 0:14:46]}  Nh7 {[%clk 0:15:50]} 18. Bg3 {[%clk 0:14:46]}  Nf8 {[%clk 0:15:50]} 19. b3 {[%clk 0:14:46]}  cxb3 {[%clk 0:15:50]} 20. Qxb3 {[%clk 0:14:46]}  a6 {[%clk 0:13:04]} 21. a4 {[%clk 0:13:57]}  b4 {[%clk 0:11:32]} 22. Na2 {[%clk 0:13:57]}  a5 {[%clk 0:11:32]} 23. Qe3 {[%clk 0:13:57]}  Rg6 {[%clk 0:10:46]} 24. Nc1 {[%clk 0:09:26]}  Bd6 {[%clk 0:10:46]} 25. Nb3 {[%clk 0:09:35]}  Qc7 {[%clk 0:07:00]} 26. Bxd6 {[%clk 0:09:35]}  Rxd6 {[%clk 0:07:00]} 27. e5 {[%clk 0:09:35]}  Rd8 {[%clk 0:07:00]} 28. Bd3 {[%clk 0:09:35]}  Rg8 {[%clk 0:06:53]} 29. Nc5 {[%clk 0:07:43]}  Ng6 {[%clk 0:06:53]} 30. Qg5 {[%clk 0:07:43]}  Bc8 {[%clk 0:05:55]} 31. Ne4 {[%clk 0:06:30]}  Rh8 {[%clk 0:05:55]} 32. Nf6+ {[%clk 0:06:24]}  Kf8 {[%clk 0:04:59]} 33. Nxh5 {[%clk 0:06:24]}  Qe7 {[%clk 0:04:59]} 34. Nf6 {[%clk 0:06:24]}  Nxh4 {[%clk 0:04:59]} 35. Qxg4 {[%clk 0:04:20]}  Nf5 {[%clk 0:04:17]} 36. Be4 {[%clk 0:04:20]}  b3 {[%clk 0:04:17]} 37. Rd3 {[%clk 0:04:20]}  Qb4 {[%clk 0:04:17]} 38. Qg5 {[%clk 0:02:17]}  b2 {[%clk 0:03:35]} 39. Nh7+ {[%clk 0:02:17]}  Ke8 {[%clk 0:03:35]} 40. Nf6+ {[%clk 0:02:17]}  Kf8 {[%clk 0:03:35]} 41. Nh7+ {[%clk 0:01:30]}  Ke8 {[%clk 0:02:47]} 1/2-1/2


[Site "http://www.Chess.com"]